bitfinex/quotes_BTCUSD_20220303
["timestamp","ask_amount","ask_price","bid_price","bid_amount"]
[1646329552369,0.302,42419.0,42418.0,0.02569675]
[1646329553024,0.302,42419.0,42412.0,0.31942825]
[1646329553224,0.002,42419.0,42416.0,0.02569675]
[1646329553827,0.117984,42418.0,42416.0,0.02569675]
[1646329554826,0.058996,42417.0,42416.0,0.02569675]
[1646329555326,0.117984,42418.0,42416.0,0.02569675]
[1646329555729,0.117984,42418.0,42416.0,0.22136729]
[1646329555928,0.1,42424.0,42417.0,0.31854]
[1646329556130,0.1,42424.0,42422.0,0.02569675]
[1646329556327,0.101,42428.0,42422.0,0.02569675]
[1646329556964,0.117972,42424.0,42422.0,0.02569675]
[1646329557160,0.117972,42424.0,42422.0,0.23550871]
[1646329557660,0.117972,42424.0,42422.0,0.07289675]
[1646329558465,0.0012252,42426.0,42423.0,0.684509]
[1646329558662,0.0012252,42426.0,42425.0,0.04923675]
[1646329558862,0.0011126,42426.0,42425.0,0.75740575]
[1646329559062,0.01227046,42446.0,42427.0,0.02354]
[1646329559262,0.05,42444.0,42435.0,0.11259856]
[1646329559465,0.226872,42444.0,42435.0,0.13829531]
[1646329559661,0.117917,42437.0,42435.0,0.13829531]
[1646329560063,0.117917,42437.0,42435.0,0.43829531]
[1646329560312,0.117917,42437.0,42435.0,0.48549531]
[1646329560517,0.001,42441.0,42435.0,0.48649531]
[1646329560713,0.001,42441.0,42435.0,0.37389675]
[1646329560915,0.001,42441.0,42435.0,0.07389675]
[1646329561112,0.001,42441.0,42435.0,0.37389675]
[1646329561511,0.001,42441.0,42435.0,0.07389675]
[1646329561711,0.058946,42437.0,42435.0,0.07289675]
[1646329562514,0.002,42436.0,42435.0,0.07289675]
[1646329563714,0.002,42436.0,42435.0,0.02569675]
[1646329563715,0.001,42436.0,42435.0,0.02569675]
[1646329563966,0.058968,42433.0,42432.0,0.02569675]
[1646329564168,0.117936,42434.0,42432.0,0.02569675]
[1646329564372,0.117936,42434.0,42431.0,0.20612961]
[1646329565072,0.058967,42433.0,42431.0,0.20612961]
[1646329565667,0.058967,42433.0,42430.0,0.11224935]
[1646329566074,0.058967,42433.0,42421.0,0.3]
[1646329566272,0.21807933,42434.0,42420.0,0.4962]
[1646329566273,0.058978,42423.0,42420.0,0.4962]
[1646329566469,0.058978,42423.0,42419.0,0.3]
[1646329566672,0.058978,42423.0,42420.0,0.17543001]
[1646329566871,0.001,42433.0,42421.0,1.383969]
[1646329567072,0.001,42433.0,42432.0,0.02354]
[1646329567477,0.001,42433.0,42427.0,0.3472]
[1646329567716,0.058953,42434.0,42428.0,0.20480889]
[1646329568316,0.058953,42434.0,42431.0,10.640172]
[1646329568515,0.058953,42434.0,42431.0,10.286384]
[1646329568918,0.176885,42433.0,42432.0,0.38996404]
[1646329569119,0.176885,42433.0,42432.0,0.41350404]
[1646329569515,0.176885,42433.0,42432.0,0.38996404]
[1646329570618,0.177883,42453.0,42434.0,0.02354]
[1646329570921,0.01226439,42448.0,42435.0,0.07074]
[1646329571117,0.501,42453.0,42435.0,0.07074]
[1646329571118,0.117883,42439.0,42435.0,0.37074]
[1646329571494,0.235797,42449.0,42437.0,0.02354]
[1646329571699,0.05,42449.0,42440.0,0.95110785]
[1646329571896,0.001,42453.0,42446.0,0.02354]
[1646329572097,0.001,42455.0,42453.0,0.06644282]
[1646329572098,0.116847,42455.0,42453.0,0.06644282]
[1646329572297,0.116847,42455.0,42454.0,0.3]
[1646329572494,0.107847,42455.0,42454.0,0.3]
[1646329572698,0.051,42464.0,42454.0,0.84892863]
[1646329572897,0.038,42464.0,42456.0,0.02354]
[1646329573097,0.00203911,42474.0,42464.0,0.02354]
[1646329573297,0.001,42479.0,42473.0,0.02354]
[1646329573500,0.001,42484.0,42475.0,0.02354]
[1646329573696,0.001,42484.0,42477.0,0.02354]
[1646329573896,0.001,42484.0,42479.0,0.08242607]
[1646329574097,0.001,42484.0,42480.0,0.660969]
[1646329574296,0.001,42484.0,42480.0,0.659969]
[1646329574496,0.001,42484.0,42481.0,0.2047078]
[1646329574696,0.0011452,42483.0,42481.0,0.2047078]
[1646329574897,0.117767,42486.0,42483.0,1.00114]
[1646329574898,0.1129962,42486.0,42483.0,1.00114]
[1646329575096,0.05216143,42489.0,42486.0,0.02354]
[1646329575097,0.05074215,42489.0,42486.0,0.02354]
[1646329575322,0.05074215,42489.0,42486.0,0.32354]
[1646329575516,0.04958071,42489.0,42486.0,0.32354]
[1646329575716,0.04899999,42489.0,42487.0,0.27227032]
[1646329575916,0.04899999,42489.0,42488.0,0.3]
[1646329575917,0.10787299,42489.0,42488.0,0.3]
[1646329576116,0.10787299,42489.0,42488.0,0.661543]
[1646329576316,0.10787299,42489.0,42488.0,0.3]
[1646329576716,0.10787299,42489.0,42487.0,0.0588754]
[1646329576923,0.10787299,42489.0,42482.0,0.005]
[1646329577118,0.058902,42485.0,42482.0,0.005]
[1646329577717,0.058902,42485.0,42480.0,0.05889397]
[1646329577718,0.058902,42485.0,42484.0,0.2012767]
[1646329577923,0.058902,42485.0,42483.0,0.09947087]
[1646329578118,0.058902,42485.0,42483.0,0.31569556]
[1646329578520,0.058902,42485.0,42483.0,0.09947087]
[1646329578721,0.058902,42485.0,42480.0,0.17667035]
[1646329579663,0.058902,42485.0,42483.0,0.18972134]
[1646329580064,0.058902,42485.0,42480.0,0.17667035]
[1646329580264,0.053902,42485.0,42480.0,0.17667035]
[1646329580666,0.053902,42485.0,42478.0,0.005]
[1646329580865,0.053902,42485.0,42479.0,0.0588976]
[1646329581066,0.05404991,42485.0,42479.0,0.21343368]
[1646329581264,0.05419782,42485.0,42479.0,0.21343368]
[1646329581466,0.05419782,42485.0,42480.0,0.361543]
[1646329581467,0.00044373,42485.0,42480.0,0.361543]
[1646329581668,0.00029582,42485.0,42484.0,0.42897066]
[1646329581867,0.04899999,42489.0,42484.0,0.42897066]
[1646329582066,0.04899999,42489.0,42484.0,0.3]
[1646329582267,0.04899999,42489.0,42488.0,0.46606332]
[1646329582464,0.04899999,42489.0,42488.0,0.63671646]
[1646329583311,0.04899999,42489.0,42488.0,0.93671646]
[1646329583510,0.04899999,42489.0,42488.0,0.57517346]
[1646329583710,0.04899999,42489.0,42488.0,0.40452032]
[1646329583912,0.04899999,42489.0,42488.0,0.10452032]
[1646329584212,0.04899999,42489.0,42488.0,0.361543]
[1646329584412,0.04899999,42489.0,42486.0,0.23551597]
[1646329584814,0.04899999,42489.0,42483.0,0.21186524]
[1646329585213,0.058893,42485.0,42483.0,0.005]
[1646329585614,0.058893,42485.0,42484.0,0.361543]
[1646329585813,0.058893,42485.0,42483.0,0.005]
[1646329585814,0.058893,42485.0,42483.0,0.361543]
[1646329586013,0.058893,42485.0,42484.0,0.42897066]
[1646329586466,0.058893,42485.0,42482.0,0.05889242]
[1646329586672,0.058893,42485.0,42479.0,0.05889679]
[1646329587370,0.117794,42485.0,42478.0,0.006]
[1646329587868,0.217794,42485.0,42474.0,0.11887406]
[1646329588273,0.217794,42485.0,42478.0,0.11778434]
[1646329588274,0.158893,42485.0,42478.0,0.11778434]
[1646329588470,0.158893,42485.0,42479.0,0.43211272]
[1646329588670,0.158893,42485.0,42479.0,0.361543]
[1646329588871,0.058893,42485.0,42482.0,0.2155127]
[1646329589071,0.0590265,42485.0,42482.0,0.2155127]
[1646329589272,0.05916,42485.0,42483.0,0.361543]
[1646329589471,0.0592935,42485.0,42483.0,0.361543]
[1646329589673,0.0592935,42485.0,42484.0,0.361543]
[1646329589872,0.0589465,42485.0,42484.0,0.361543]
[1646329590073,0.058813,42485.0,42482.0,0.05888839]
[1646329590521,0.058813,42485.0,42480.0,0.20079109]
[1646329590522,0.058813,42485.0,42484.0,0.004]
[1646329590925,0.058813,42485.0,42484.0,0.365543]
[1646329591525,0.058813,42485.0,42484.0,0.004]
[1646329591724,0.058813,42485.0,42478.0,0.361543]
[1646329591923,0.058813,42485.0,42475.0,0.3]
[1646329592124,0.117801,42481.0,42478.0,0.17714523]
[1646329592424,0.117801,42481.0,42475.0,0.3]
[1646329592425,0.117801,42481.0,42479.0,0.361543]
[1646329592624,0.058899,42482.0,42479.0,0.42043224]
[1646329592824,0.058899,42482.0,42478.0,0.3]
[1646329593225,0.058899,42482.0,42479.0,0.361543]
[1646329593824,0.058899,42482.0,42480.0,0.16592115]
[1646329594066,0.00025386,42485.0,42481.0,0.3]
[1646329594467,0.01056562,42486.0,42483.0,0.95]
[1646329594667,0.01056562,42486.0,42484.0,0.3]
[1646329594866,0.025,42503.0,42480.0,0.28004217]
[1646329594867,0.21991061,42499.0,42488.0,0.20388024]
[1646329595070,0.058885,42496.0,42481.0,0.3]
[1646329595267,0.00016924,42485.0,42484.0,0.05888087]
[1646329595467,0.00025386,42485.0,42484.0,0.05888087]
[1646329595667,0.00025386,42485.0,42484.0,0.78811681]
[1646329595867,0.00101529,42491.0,42484.0,1.51111681]
[1646329595868,0.00067686,42491.0,42484.0,1.51111681]
[1646329596070,0.05,42499.0,42486.0,0.74654]
[1646329596267,0.17662,42503.0,42491.0,0.05887548]
[1646329596668,0.058872,42492.0,42489.0,0.11506986]
[1646329597067,0.058872,42492.0,42480.0,0.2441]
[1646329597268,0.058872,42492.0,42479.0,0.006]
[1646329597269,0.176693,42491.0,42479.0,0.006]
[1646329597469,0.15,42498.0,42480.0,0.0657397]
[1646329597725,0.05,42499.0,42479.0,0.3]
[1646329597726,0.058895,42482.0,42479.0,0.3]
[1646329597927,0.117765,42489.0,42479.0,0.3]
[1646329598127,0.117765,42489.0,42488.0,0.15809194]
[1646329598324,0.117765,42489.0,42484.0,0.11775824]
[1646329598525,0.117765,42489.0,42485.0,0.361543]
[1646329598729,0.117765,42489.0,42486.0,0.05887743]
[1646329599125,0.117765,42489.0,42487.0,0.361543]
[1646329599325,0.117765,42489.0,42488.0,0.28207969]
[1646329599526,0.117747,42496.0,42489.0,0.11773495]
[1646329599927,0.00029836,42490.0,42488.0,0.11659763]
[1646329600126,0.00044754,42490.0,42488.0,0.17547634]
[1646329600325,0.00044754,42490.0,42488.0,0.11659763]
[1646329600526,0.00029836,42490.0,42488.0,0.12159763]
[1646329600727,0.16161025,42498.0,42488.0,0.302841]
[1646329600929,0.22049425,42498.0,42488.0,0.12159763]
[1646329601131,0.00010067,42491.0,42488.0,0.005]
[1646329601332,0.00020134,42491.0,42488.0,0.005]
[1646329601585,0.00030201,42491.0,42488.0,0.005]
[1646329601981,0.00020134,42491.0,42481.0,0.3]
[1646329602180,0.058891,42484.0,42481.0,0.3]
[1646329602381,0.058891,42484.0,42482.0,0.361543]
[1646329602586,0.058891,42484.0,42481.0,0.3]
[1646329602587,0.058891,42484.0,42483.0,0.003]
[1646329602782,0.117782,42485.0,42483.0,0.003]
[1646329603081,0.117782,42485.0,42484.0,0.361543]
[1646329603482,0.117782,42485.0,42484.0,0.661543]
[1646329604481,0.117782,42485.0,42484.0,0.665543]
[1646329605322,0.176679,42486.0,42478.0,0.03]
[1646329605524,0.235629,42484.0,42478.0,0.03]
[1646329605718,0.235629,42484.0,42473.0,0.01175]
[1646329605719,0.0434,42483.0,42473.0,0.01175]
[1646329605919,0.058906,42480.0,42473.0,0.01175]
[1646329606118,0.117809,42479.0,42476.0,0.00029726]
[1646329606522,0.117809,42479.0,42476.0,0.00014863]
[1646329606718,0.117809,42479.0,42473.0,0.01175]
[1646329606920,0.117809,42479.0,42477.0,0.1650848]
[1646329607122,0.117809,42479.0,42478.0,0.361543]
[1646329607319,0.117809,42479.0,42478.0,0.72897066]
[1646329607519,0.058897,42482.0,42478.0,0.72897066]
[1646329607719,0.058897,42482.0,42481.0,0.06742766]
[1646329607918,0.058897,42482.0,42481.0,0.42897066]
[1646329608120,0.058897,42482.0,42477.0,0.36634884]
[1646329608320,0.058897,42482.0,42478.0,0.361543]
[1646329608520,0.058897,42482.0,42481.0,0.004]
[1646329608722,0.058897,42482.0,42474.0,0.00014826]
[1646329609178,0.058897,42482.0,42474.0,0.00029652]
[1646329609477,0.058897,42482.0,42474.0,0.00044478]
[1646329609676,0.058897,42482.0,42474.0,0.00029652]
[1646329609877,0.058897,42482.0,42473.0,0.01175]
[1646329610279,0.058897,42482.0,42464.0,0.4902]
[1646329610280,0.058911,42476.0,42464.0,0.4902]
[1646329610478,0.058911,42476.0,42467.0,0.20409127]
[1646329611478,0.058911,42476.0,42471.0,0.16643986]
[1646329611684,0.058911,42476.0,42472.0,0.361543]
[1646329612282,0.058911,42476.0,42473.0,0.26038935]
[1646329612481,0.058911,42476.0,42474.0,0.51999482]
[1646329612919,0.05030159,42484.0,42474.0,0.361543]
[1646329612920,0.05010053,42484.0,42474.0,0.361543]
[1646329613120,0.058896,42477.0,42473.0,0.08671973]
[1646329613320,0.058896,42477.0,42474.0,0.361543]
[1646329613719,0.058896,42477.0,42476.0,0.06742766]
[1646329613919,0.058896,42477.0,42476.0,0.42897066]
[1646329614521,0.058896,42477.0,42476.0,0.43597066]
[1646329615122,0.058893,42478.0,42476.0,0.43597066]
[1646329615322,0.058893,42478.0,42477.0,0.12631848]
[1646329615521,0.058893,42478.0,42477.0,0.48786148]
[1646329615720,0.00014779,42484.0,42477.0,0.42897066]
[1646329615920,0.00044337,42484.0,42475.0,0.16552868]
[1646329616121,0.117792,42479.0,42476.0,0.361543]
[1646329616872,0.117792,42479.0,42478.0,0.42943694]
[1646329617068,0.142782,42495.0,42478.0,1.28208495]
[1646329617269,0.0002119,42484.0,42480.0,0.74654]
[1646329617469,0.00031785,42484.0,42483.0,0.79042766]
[1646329617668,0.00031785,42484.0,42483.0,1.15197066]
[1646329617869,0.0002119,42484.0,42483.0,0.42897066]
[1646329618068,0.00010595,42484.0,42483.0,0.46560519]
[1646329618268,0.167751,42492.0,42490.0,0.08663822]
[1646329618269,0.117751,42492.0,42490.0,0.08663822]
[1646329618470,0.117751,42492.0,42491.0,0.361543]
[1646329619272,0.058875,42494.0,42491.0,0.361543]
[1646329620071,0.117752,42496.0,42491.0,0.361543]
[1646329620326,0.117752,42496.0,42483.0,0.361543]
[1646329620327,0.058884,42490.0,42483.0,0.361543]
[1646329620626,0.001,42499.0,42492.0,0.361543]
[1646329620827,0.001,42499.0,42491.0,0.001]
[1646329621025,0.001,42499.0,42492.0,0.361543]
[1646329621325,0.1,42501.0,42500.0,0.399]
[1646329621724,0.27385007,42502.0,42500.0,0.399]
[1646329621925,0.33272607,42502.0,42500.0,0.399]
[1646329622129,1.0,42501.0,42498.0,0.399]
[1646329622331,1.15,42501.0,42498.0,0.07319729]
[1646329622527,0.1434,42500.0,42498.0,0.07319729]
[1646329622926,0.1434,42500.0,42498.0,0.07182543]
[1646329623327,1.0,42499.0,42495.0,0.49429501]
[1646329623532,0.29681948,42495.0,42494.0,0.27872943]
[1646329623829,0.29681948,42495.0,42490.0,0.6]
[1646329623830,0.0128433,42493.0,42492.0,0.05892943]
[1646329624067,0.0128433,42493.0,42490.0,0.6]
[1646329624068,1.01368416,42492.0,42491.0,0.246536]
[1646329624268,1.15708416,42492.0,42491.0,0.246536]
[1646329624469,0.91207639,42491.0,42490.0,0.139601]
[1646329624672,1.29492693,42491.0,42490.0,0.139601]
[1646329624868,1.12804873,42491.0,42490.0,0.139601]
[1646329625068,0.85,42489.0,42484.0,0.6]
[1646329625268,1.33379734,42489.0,42488.0,0.5991828]
[1646329625869,0.48379734,42489.0,42488.0,0.5991828]
[1646329626370,0.33379734,42489.0,42488.0,0.5991828]
[1646329626570,0.33879734,42489.0,42488.0,0.5991828]
[1646329626970,0.63879734,42489.0,42488.0,0.5991828]
[1646329627174,0.63879734,42489.0,42488.0,0.2456998]
[1646329627818,0.33379734,42489.0,42484.0,0.6]
[1646329628016,0.1,42488.0,42484.0,0.6]
[1646329628618,0.2934,42488.0,42487.0,0.041504]
[1646329628819,0.5934,42488.0,42487.0,0.041504]
[1646329629017,0.72487134,42488.0,42487.0,0.041504]
[1646329629218,1.0,42487.0,42484.0,0.6]
[1646329629419,1.41597234,42487.0,42484.0,0.6]
[1646329629618,1.76587234,42487.0,42484.0,0.6]
[1646329629821,1.76587234,42487.0,42486.0,0.246499]
[1646329630618,1.51597234,42487.0,42486.0,0.246499]
[1646329631021,0.21597234,42487.0,42486.0,0.246499]
[1646329632569,0.75,42486.0,42484.0,0.6]
[1646329632768,0.96597234,42486.0,42484.0,0.6]
[1646329633168,0.96597234,42486.0,42485.0,0.046485]
[1646329633568,1.35777375,42486.0,42485.0,0.046485]
[1646329633769,0.65,42485.0,42484.0,0.6]
[1646329633969,0.91597234,42485.0,42484.0,0.6]
[1646329634170,0.23520141,42485.0,42484.0,0.6]
[1646329634369,0.1,42485.0,42484.0,0.6]
[1646329634769,0.117814,42488.0,42484.0,0.6]
[1646329634770,0.00010452,42487.0,42484.0,0.6]
[1646329634972,0.00020904,42487.0,42484.0,0.69637814]
[1646329635241,0.00031356,42487.0,42484.0,0.69637814]
[1646329635437,0.00020904,42487.0,42484.0,0.69637814]
[1646329635637,0.117797,42489.0,42484.0,0.6]
[1646329636239,0.058898,42488.0,42484.0,0.6]
[1646329636439,0.058897,42487.0,42484.0,0.6]
[1646329638747,0.00027626,42488.0,42484.0,0.6]
[1646329638985,0.1,42491.0,42484.0,0.6]
[1646329639186,0.005,42492.0,42488.0,0.09786997]
[1646329639587,0.005,42492.0,42490.0,0.16629378]
[1646329639789,0.00110484,42495.0,42488.0,0.09786997]
[1646329639988,0.00165726,42495.0,42488.0,0.09786997]
[1646329640389,0.11833242,42495.0,42484.0,0.6]
[1646329640689,0.41778,42495.0,42484.0,0.6]
[1646329640887,0.3,42495.0,42484.0,0.6]
[1646329641087,0.1,42498.0,42484.0,0.6]
[1646329641088,0.1,42494.0,42484.0,0.6]
[1646329641288,0.00022658,42492.0,42484.0,0.6]
[1646329641487,0.00033987,42492.0,42487.0,0.09842181]
[1646329641788,0.00022658,42492.0,42487.0,0.09842181]
[1646329641991,0.00011329,42492.0,42487.0,0.09842181]
[1646329642188,0.058886,42495.0,42487.0,0.09842181]
[1646329642828,0.00022658,42492.0,42488.0,0.42113822]
[1646329643124,0.00033987,42492.0,42489.0,0.361543]
[1646329643324,0.00022658,42492.0,42491.0,0.42897066]
[1646329643523,0.00011329,42492.0,42491.0,0.361543]
[1646329643722,0.05933009,42498.0,42494.0,0.10569497]
[1646329643723,0.058877,42498.0,42494.0,0.10569497]
[1646329643922,0.058877,42498.0,42495.0,0.3]
[1646329644122,0.117753,42502.0,42494.0,0.10569497]
[1646329644423,0.00049222,42500.0,42496.0,0.15433667]
[1646329644623,0.00147666,42500.0,42494.0,0.10569497]
[1646329645022,0.00049222,42500.0,42494.0,0.10569497]
[1646329645226,0.058876,42502.0,42494.0,0.10569497]
[1646329645622,0.058876,42502.0,42498.0,0.14698136]
[1646329645825,0.00012307,42499.0,42498.0,0.14698136]
[1646329646025,0.00024614,42499.0,42498.0,0.14698136]
[1646329646225,0.00036921,42499.0,42495.0,0.3]
[1646329646469,0.00036921,42499.0,42496.0,0.15851616]
[1646329646669,0.00612307,42499.0,42496.0,0.15851616]
[1646329646876,0.006,42499.0,42496.0,0.15851616]
[1646329647272,0.006,42499.0,42497.0,0.19049899]
[1646329647473,0.006,42499.0,42498.0,0.3]
[1646329647872,0.00030537,42500.0,42498.0,0.35886391]
[1646329648076,0.00020358,42500.0,42499.0,0.3]
[1646329648272,0.001,42507.0,42499.0,0.3]
[1646329648474,0.001,42507.0,42501.0,0.1184275]
[1646329649074,0.00020484,42502.0,42501.0,0.1184275]
[1646329649675,6.828e-05,42502.0,42498.0,0.05886391]
[1646329649876,0.001,42507.0,42498.0,0.05886391]
[1646329650626,0.00313656,42504.0,42498.0,0.05886391]
[1646329650824,0.00320484,42504.0,42500.0,0.08620823]
[1646329651023,0.00313656,42504.0,42500.0,0.08620823]
[1646329651226,0.003,42504.0,42500.0,0.08620823]
[1646329651624,0.003,42504.0,42498.0,0.2672123]
[1646329651824,0.001,42504.0,42498.0,0.05886391]
[1646329652030,0.001,42504.0,42493.0,0.3]
[1646329652227,0.001,42504.0,42493.0,0.0588771]
[1646329652228,0.00106768,42504.0,42493.0,0.0588771]
[1646329652427,0.0471,42503.0,42490.0,0.3]
[1646329652929,0.0471,42503.0,42496.0,0.18498579]
[1646329653129,0.001,42504.0,42496.0,0.18498579]
[1646329653728,0.00010042,42502.0,42496.0,0.18498579]
[1646329653972,0.00030126,42502.0,42499.0,0.17526053]
[1646329654374,0.00020084,42502.0,42499.0,0.17526053]
[1646329654573,0.001,42504.0,42499.0,0.17526053]
[1646329654773,0.001,42504.0,42500.0,0.3]
[1646329655173,0.001,42504.0,42503.0,0.18518982]
[1646329656475,0.001,42504.0,42500.0,0.3]
[1646329656674,0.001,42504.0,42499.0,0.17526053]
[1646329657276,0.001,42504.0,42502.0,0.19505586]
[1646329657474,0.001,42504.0,42499.0,0.23412532]
[1646329658521,0.001,42504.0,42502.0,0.02354]
[1646329658522,0.00112787,42504.0,42502.0,0.02354]
[1646329658718,0.00125574,42504.0,42503.0,0.02354]
[1646329658919,0.00028361,42504.0,42502.0,0.3]
[1646329659119,0.001,42507.0,42505.0,0.1215382]
[1646329659320,0.001,42507.0,42506.0,0.3]
[1646329660119,0.001,42507.0,42505.0,0.10058747]
[1646329660322,0.001,42507.0,42506.0,0.3]
[1646329660519,0.001,42507.0,42505.0,0.15944399]
[1646329661118,0.001,42507.0,42505.0,0.39814701]
[1646329661319,0.001,42507.0,42505.0,0.37460701]
[1646329661769,0.001,42507.0,42505.0,0.05885652]
[1646329662070,0.001,42507.0,42501.0,0.3]
[1646329662569,0.003,42507.0,42501.0,0.3]
[1646329662769,0.003,42507.0,42505.0,0.11182535]
[1646329662971,0.003,42507.0,42506.0,0.3]
[1646329663770,0.003,42507.0,42504.0,0.11770473]
[1646329664071,0.001,42507.0,42503.0,0.3]
[1646329664673,0.053,42519.0,42503.0,0.3]
[1646329664879,0.053,42519.0,42498.0,0.005]
[1646329664880,0.00029814,42508.0,42498.0,0.005]
[1646329665073,0.0471,42507.0,42498.0,0.005]
[1646329665723,0.0471,42507.0,42503.0,0.17267347]
[1646329666124,0.91251294,42518.0,42503.0,0.17267347]
[1646329666320,0.91251294,42518.0,42504.0,0.15716694]
[1646329666321,0.117726,42512.0,42504.0,0.15716694]
[1646329666522,0.00014907,42507.0,42504.0,0.15716694]
[1646329666721,0.00029814,42507.0,42503.0,0.19821347]
[1646329666924,0.00044721,42507.0,42503.0,0.19821347]
[1646329667322,0.00014907,42507.0,42505.0,0.25]
[1646329667624,0.058856,42513.0,42510.0,0.2010938]
[1646329667824,0.058856,42513.0,42511.0,0.20185148]
[1646329668022,0.058856,42513.0,42510.0,0.2010938]
[1646329668223,0.058856,42513.0,42508.0,0.09854767]
[1646329668626,0.058856,42513.0,42510.0,0.002]
[1646329669874,0.058856,42513.0,42511.0,0.15244518]
[1646329670276,0.17071,42519.0,42513.0,1.0]
[1646329670277,0.045,42519.0,42513.0,1.0]
[1646329670473,0.003,42519.0,42513.0,1.0]
[1646329670676,0.001,42518.0,42513.0,1.25]
[1646329670874,0.001,42518.0,42514.0,0.3]
[1646329671476,0.001,42518.0,42514.0,0.3588324]
[1646329672076,0.002,42522.0,42516.0,1.22354]
[1646329672277,0.002,42522.0,42517.0,0.41203595]
[1646329672475,0.002,42522.0,42518.0,0.18288876]
[1646329672721,0.047834,42524.0,42519.0,1.02354]
[1646329672923,0.004,42528.0,42523.0,0.17354]
[1646329673123,0.08240015,42529.0,42527.0,0.22354]
[1646329673324,0.08040015,42529.0,42528.0,0.661543]
[1646329673520,3.003,42530.0,42529.0,0.723]
[1646329673722,3.003,42530.0,42529.0,1.47551066]
[1646329674225,3.003,42530.0,42528.0,0.10364721]
[1646329674421,3.003,42530.0,42529.0,0.361543]
[1646329674621,3.005,42530.0,42529.0,0.361543]
[1646329675423,0.002,42531.0,42529.0,0.685083]
[1646329675626,0.002,42535.0,42532.0,1.22354]
[1646329675824,0.002,42535.0,42533.0,0.55]
[1646329676025,0.002,42535.0,42534.0,0.3]
[1646329676223,0.002,42535.0,42533.0,0.25]
[1646329679074,0.002,42535.0,42533.0,0.27354]
[1646329679469,0.002,42535.0,42533.0,0.57354]
[1646329679669,0.002,42535.0,42533.0,0.55]
[1646329679871,0.002,42535.0,42533.0,0.25]
[1646329680733,0.002,42535.0,42533.0,0.255]
[1646329681036,0.002,42535.0,42533.0,0.005]
[1646329681435,0.0471,42535.0,42516.0,0.3]
[1646329681739,0.058845,42524.0,42518.0,0.45]
[1646329681935,0.058845,42524.0,42515.0,0.3]
[1646329682134,0.058845,42524.0,42520.0,0.17472297]
[1646329682334,0.058845,42524.0,42520.0,0.10104207]
[1646329682736,0.058845,42524.0,42520.0,0.10504207]
[1646329682935,0.058845,42524.0,42521.0,0.3]
[1646329683336,0.058845,42524.0,42523.0,0.16404006]
[1646329683535,0.031845,42524.0,42523.0,0.16404006]
[1646329684679,0.031845,42524.0,42523.0,0.16804006]
[1646329684880,0.031845,42524.0,42523.0,0.004]
[1646329686082,0.058831,42528.0,42522.0,0.15824582]
[1646329686485,0.217663,42532.0,42527.0,0.10979217]
[1646329687083,0.212663,42532.0,42527.0,0.10979217]
[1646329687491,0.112663,42532.0,42527.0,0.10979217]
[1646329687926,0.058825,42533.0,42528.0,0.3]
[1646329688122,0.058821,42534.0,42528.0,0.3]
[1646329688320,0.058821,42534.0,42527.0,0.10979217]
[1646329688321,0.00011036,42532.0,42527.0,0.10979217]
[1646329688523,0.00022072,42532.0,42527.0,0.10979217]
[1646329688721,0.00033108,42532.0,42527.0,0.10979217]
[1646329688921,0.00033108,42532.0,42523.0,0.00333114]
[1646329688922,0.11799308,42532.0,42523.0,0.00333114]
[1646329689122,0.11777236,42532.0,42523.0,0.00311038]
[1646329689324,0.058827,42531.0,42523.0,0.003]
[1646329689522,0.033827,42531.0,42523.0,0.00314827]
[1646329689822,0.033827,42531.0,42524.0,0.361543]
[1646329690022,0.0002965,42530.0,42525.0,0.3]
[1646329690324,0.00044475,42530.0,42526.0,0.11407753]
[1646329690521,0.0002965,42530.0,42526.0,0.11407753]
[1646329690721,0.033827,42531.0,42526.0,0.11407753]
[1646329690921,0.033827,42531.0,42526.0,0.27519364]
[1646329691322,0.033827,42531.0,42526.0,0.47519364]
[1646329691575,0.00012096,42530.0,42526.0,0.47519364]
[1646329691775,0.00024192,42530.0,42526.0,0.61407753]
[1646329691983,0.00036288,42530.0,42526.0,0.31407753]
[1646329692175,0.00024192,42530.0,42526.0,0.31407753]
[1646329692380,0.033827,42531.0,42526.0,0.31407753]
[1646329692575,0.033827,42531.0,42526.0,0.11407753]
[1646329693176,0.03392241,42531.0,42526.0,0.56407753]
[1646329693378,0.00028623,42531.0,42528.0,0.2]
[1646329693579,0.00028623,42531.0,42530.0,0.2]
[1646329693780,0.00028623,42531.0,42530.0,0.861543]
[1646329693979,9.541e-05,42531.0,42530.0,0.861543]
[1646329694180,0.058818,42534.0,42531.0,0.361543]
[1646329694381,0.001,42537.0,42534.0,0.47173036]
[1646329694584,0.001,42537.0,42535.0,0.361543]
[1646329694782,0.001,42537.0,42536.0,0.661543]
[1646329695429,0.001,42537.0,42536.0,0.3]
[1646329696728,0.003,42537.0,42536.0,0.3]
[1646329697134,0.003,42537.0,42531.0,0.002]
[1646329698030,0.003,42537.0,42533.0,0.17833318]
[1646329698031,0.058822,42535.0,42533.0,0.17833318]
[1646329698429,0.001,42538.0,42537.0,1.737888]
[1646329702281,0.001,42538.0,42537.0,1.914503]
[1646329702724,0.24100001,42538.0,42537.0,1.738888]
[1646329703225,0.24100001,42538.0,42537.0,1.84253895]
[1646329703625,0.24100001,42538.0,42537.0,2.10203809]
[1646329704025,0.24100001,42538.0,42537.0,2.10103809]
[1646329704828,0.24300001,42538.0,42537.0,2.10103809]
[1646329705127,0.24300001,42538.0,42537.0,1.90896661]
[1646329705926,0.002,42539.0,42538.0,1.723]
[1646329706130,0.00014557,42544.0,42541.0,0.2]
[1646329706329,0.00014557,42544.0,42540.0,1.0]
[1646329706330,0.003,42548.0,42547.0,0.361543]
[1646329706579,0.003,42548.0,42546.0,0.45]
[1646329706778,0.003,42548.0,42546.0,0.75]